bitfinex/quotes_SOLUSD_20240625
["timestamp","ask_amount","ask_price","bid_price","bid_amount"]
[1719332485214,7.69556102,139.11,139.02,1.24951952]
[1719332485417,7.69606102,139.1,139.02,1.24951952]
[1719332485714,6.4604,139.09,139.02,1.24951952]
[1719332485933,15.6078,139.07,138.96,259.7]
[1719332486109,15.6078,139.07,138.93,6.2097]
[1719332486110,0.50696102,139.06,138.93,6.2097]
[1719332486319,0.50696102,139.06,138.99,7.1946]
[1719332486825,0.50696102,139.06,139.0,7.1942]
[1719332487227,0.50696102,139.06,139.01,7.1934]
[1719332487925,0.50696102,139.06,139.02,7.1931]
[1719332488136,0.50696102,139.06,138.95,1.3503206]
[1719332488516,0.50696102,139.06,138.96,21.64]
[1719332488833,0.50696102,139.06,139.0,7.194]
[1719332490311,0.50696102,139.06,139.01,1.34973776]
[1719332490521,0.50696102,139.06,138.97,1.51973776]
[1719332490712,0.50696102,139.06,138.99,7.1943]
[1719332490919,0.50696102,139.06,139.0,1.349626]
[1719332491126,0.50696102,139.06,139.0,7.1942]
[1719332491332,0.50696102,139.06,139.01,8.54283764]
[1719332491529,0.50696102,139.06,139.01,1.34923764]
[1719332491735,0.50696102,139.06,139.0,7.1941]
[1719332492630,0.50696102,139.06,139.01,7.1936]
[1719332493023,0.50696102,139.06,139.0,7.194]
[1719332494832,7.69806102,139.06,138.97,1.51953281]
[1719332495035,0.50696102,139.06,138.97,1.34953281]
[1719332495233,0.17,139.05,138.94,1.34962993]
[1719332495416,0.50696102,139.04,138.98,7.1952]
[1719332495616,20.50696102,139.04,138.97,7.1956]
[1719332496121,27.69926102,139.04,138.97,7.1956]
[1719332496312,13.2269,139.02,138.94,1.34962993]
[1719332496639,13.2269,139.02,138.92,37.8577]
[1719332496640,0.50696102,139.01,138.93,1.34962993]
[1719332497427,0.50696102,139.01,138.95,7.1966]
[1719332497621,0.50696102,139.01,138.96,1.39021749]
[1719332498235,0.50696102,139.01,138.96,8.58631749]
[1719332498544,0.50696102,139.01,138.97,8.58531734]
[1719332498945,6.54046102,139.02,138.97,7.08531734]
[1719332499436,0.50696102,139.01,138.97,7.08531734]
[1719332499738,6.54046102,139.02,138.97,5.6955]
[1719332499938,20.0,139.04,138.93,1.38981734]
[1719332499939,17.03574518,139.04,138.98,7.1951]
[1719332500316,17.03574518,139.04,138.97,7.1956]
[1719332500943,24.22794518,139.04,138.97,7.1956]
[1719332501117,7.194,139.01,138.93,1.38931741]
[1719332501323,24.22834518,139.04,138.96,7.1958]
[1719332501533,0.17,139.05,138.97,1.38891752]
[1719332501844,7.1922,139.04,138.97,1.38891752]
[1719332502138,7.1922,139.04,138.97,8.58461752]
[1719332502139,20.0,139.03,138.97,8.58461752]
[1719332502436,20.0,139.03,138.97,7.1957]
[1719332502937,20.0,139.03,138.96,7.1962]
[1719332503146,20.0,139.03,138.97,8.58435327]
[1719332503443,27.1927,139.03,138.95,7.1966]
[1719332503641,27.1927,139.03,138.96,1.38835347]
[1719332504228,20.0,139.03,138.96,8.58465347]
[1719332504551,6.1427,139.04,138.99,7.1944]
[1719332504728,6.1427,139.04,139.0,1.41360535]
[1719332504931,6.1427,139.04,139.0,8.60780535]
[1719332505225,15.6078,139.07,139.01,7.1936]
[1719332505462,15.6078,139.07,139.0,7.194]
[1719332505639,15.6078,139.07,139.01,1.4129952]
[1719332506843,7.1914,139.06,138.99,7.1946]
[1719332507046,7.1914,139.06,139.0,1.41295999]
[1719332507217,7.1914,139.06,138.98,7.1951]
[1719332507423,15.6078,139.07,138.99,1.41275679]
[1719332507424,7.1918,139.05,138.99,1.41275679]
[1719332507721,7.1918,139.05,138.97,8.60835679]
[1719332508227,7.1918,139.05,138.98,7.1952]
[1719332509752,15.7778,139.07,139.01,7.1936]
[1719332509966,15.6078,139.07,139.0,7.1941]
[1719332510119,0.17,139.06,138.99,7.1943]
[1719332510521,7.1916,139.05,138.97,1.41573845]
[1719332510769,0.17,139.06,138.97,7.1955]
[1719332510934,20.17,139.06,138.95,1.422917]
[1719332511138,20.17,139.06,138.97,7.1957]
[1719332511835,27.3613,139.06,138.98,7.1952]
[1719332512026,20.17,139.06,138.99,7.1946]
[1719332512239,27.3613,139.06,138.99,7.1946]
[1719332512456,7.1916,139.05,138.98,7.1951]
[1719332512955,7.1916,139.05,138.97,7.1956]
[1719332513163,20.0,139.04,138.95,7.1963]
[1719332513461,20.0,139.04,138.96,7.1961]
[1719332513462,7.363,139.03,138.96,7.1961]
[1719332513826,0.17,139.03,138.96,7.1961]
[1719332514023,0.17,139.03,138.92,16.2177]
[1719332514242,0.17,139.03,138.93,0.17]
[1719332514956,0.17,139.03,138.94,7.1968]
[1719332514957,15.4584,139.01,138.94,7.1968]
[1719332515125,7.1942,139.0,138.93,7.1978]
[1719332515330,22.6521,139.01,138.94,7.1972]
[1719332515525,20.0,139.0,138.88,16.4851]
[1719332515734,20.0,139.0,138.96,7.1959]
[1719332515976,20.0,139.0,138.94,7.1969]
[1719332516558,20.0,139.0,138.95,7.1968]
[1719332517064,20.0,139.0,138.94,7.1971]
[1719332517369,20.0,139.0,138.93,7.1976]
[1719332517563,20.0,139.0,138.94,7.1971]
[1719332517758,20.0,139.0,138.96,7.1959]
[1719332517946,20.0,139.0,138.95,7.1966]
[1719332518521,20.0,139.0,138.96,7.1962]
[1719332518754,20.0,139.0,138.95,7.1966]
[1719332519163,20.0,139.0,138.93,7.1976]
[1719332519555,7.1943,139.0,138.93,7.1976]
[1719332519889,23.10415009,139.01,138.88,61.6251]
[1719332520063,23.10415009,139.01,138.95,7.1964]
[1719332520363,22.93415009,139.01,138.95,7.1966]
[1719332520657,30.12815009,139.01,138.93,7.1976]
[1719332521260,30.12815009,139.01,138.94,7.1973]
[1719332522459,7.1944,139.0,138.93,7.1976]
[1719332522629,22.93415009,139.01,138.94,7.1969]
[1719332522832,22.93415009,139.01,138.91,45.14]
[1719332523031,15.4584,139.01,138.97,7.1957]
[1719332523537,15.4584,139.01,138.96,7.1961]
[1719332523856,15.4584,139.01,138.97,7.1957]
[1719332524065,6.3709,139.02,138.93,6.1438]
[1719332524252,100.0,139.12,138.93,6.1438]
[1719332524253,6.6248,139.06,138.96,21.64]
[1719332524475,6.6248,139.06,139.03,7.1921]
[1719332524646,15.001,139.08,138.97,45.48]
[1719332524833,15.001,139.08,139.04,7.1918]
[1719332525342,6.5283,139.1,139.05,7.1914]
[1719332526566,6.5283,139.1,139.04,7.1921]
[1719332526745,6.5283,139.1,139.05,7.1916]
[1719332527062,6.5283,139.1,138.99,45.14]
[1719332527239,6.5283,139.1,139.04,7.192]
[1719332528955,6.5283,139.1,139.0,0.34]
[1719332529148,6.5283,139.1,138.99,23.5]
[1719332529347,0.17,139.09,139.02,7.1931]
[1719332529961,0.17,139.09,139.0,7.1941]
[1719332530263,7.3597,139.09,139.02,7.1929]
[1719332530474,6.5283,139.1,139.04,7.1917]
[1719332531067,6.5283,139.1,139.03,7.1926]
[1719332531282,13.7175,139.1,138.98,21.64]
[1719332531575,13.7175,139.1,139.02,7.193]
[1719332531785,13.7175,139.1,138.95,31.0541]
[1719332531786,6.5283,139.1,138.99,7.1945]
[1719332532073,15.6078,139.08,138.95,38.9463]
[1719332532376,6.6601,139.03,138.95,15.4463]
[1719332532972,6.1004,139.06,139.01,7.1934]
[1719332533149,6.1004,139.06,139.0,7.1941]
[1719332533474,6.1004,139.06,138.99,7.1947]
[1719332533682,6.1004,139.06,139.0,7.1941]
[1719332533969,6.1004,139.06,138.99,7.1946]
[1719332534347,6.1004,139.06,138.98,7.1952]
[1719332534542,7.3618,139.05,138.97,7.1956]
[1719332534755,0.17,139.05,138.95,7.1965]
[1719332534947,0.17,139.05,138.93,23.5]
[1719332535341,7.3621,139.05,138.98,7.1951]
[1719332536048,7.1922,139.04,138.97,7.1957]
[1719332536270,7.1922,139.04,138.96,7.1961]
[1719332536870,7.1922,139.04,138.97,7.1956]
[1719332537052,7.1922,139.04,138.93,23.5]
[1719332537250,7.3627,139.03,138.95,7.1964]
[1719332537641,7.3627,139.03,138.96,7.1962]
[1719332538142,22.801,139.02,138.94,7.1972]
[1719332538346,6.0737,139.01,138.92,7.1983]
[1719332538578,7.1944,139.0,138.87,38.2878]
[1719332538750,13.4374,139.01,138.93,7.1975]
[1719332539073,13.2674,139.01,138.93,7.1975]
[1719332539372,7.3643,139.0,138.92,7.1982]
[1719332539748,0.17,139.0,138.9,1.27658353]
[1719332540359,7.3645,139.0,138.92,7.1982]
[1719332540577,0.17,139.0,138.92,7.1982]
[1719332540780,7.3645,139.0,138.9,1.27630786]
[1719332541094,7.3645,139.0,138.92,7.1981]
[1719332541574,7.3645,139.0,138.93,7.1978]
[1719332542282,7.1948,138.99,138.92,7.1983]
[1719332542979,7.3642,139.0,138.93,7.1977]
[1719332543372,7.3642,139.0,138.92,7.1983]
[1719332543559,7.3642,139.0,138.93,7.1977]
[1719332543877,0.17,139.0,138.93,7.1977]
[1719332544967,6.0737,139.01,138.94,1.27605686]
[1719332545177,6.0737,139.01,138.98,7.1948]
[1719332545378,6.0737,139.01,138.92,45.14]
[1719332545379,6.0737,139.01,138.96,7.1958]
[1719332545673,6.0737,139.01,138.97,7.1957]
[1719332546254,6.0737,139.01,138.95,7.1964]
[1719332546465,6.0737,139.01,138.94,7.1971]
[1719332546691,6.0737,139.01,138.93,7.1976]
[1719332546692,13.2677,139.01,138.93,7.1976]
[1719332546865,7.1942,139.0,138.93,7.1976]
[1719332547054,7.1944,139.0,138.88,23.5]
[1719332547422,6.0737,139.01,138.89,0.17]
[1719332547553,13.2674,139.01,138.94,7.1971]
[1719332547754,13.2675,139.01,138.93,7.1976]
[1719332547966,7.3642,139.0,138.93,7.1976]
[1719332548287,0.17,139.0,138.94,7.1972]
[1719332548467,13.2677,139.01,138.94,7.1972]
[1719332548784,0.17,139.0,138.93,7.1977]
[1719332548990,7.1948,138.99,138.92,7.1982]
[1719332549282,7.1948,138.99,138.87,16.6478]
[1719332549283,7.1949,138.99,138.89,0.17]
[1719332549579,0.17,139.0,138.92,7.1983]
[1719332549779,0.17,139.0,138.93,7.1975]
[1719332549780,7.3644,139.0,138.93,7.1975]
[1719332550083,0.17,139.0,138.92,7.1981]
[1719332550259,7.3644,139.0,138.93,7.1978]
[1719332550453,7.3644,139.0,138.92,7.1981]
[1719332550652,7.1947,138.99,138.92,7.1981]
[1719332551229,0.17,139.0,138.9,7.1993]
[1719332551486,7.1954,138.98,138.9,7.1994]
[1719332551780,7.1955,138.98,138.88,1.28342854]
[1719332552168,7.1949,138.99,138.91,7.1988]
[1719332552371,0.17,138.98,138.91,7.1988]
[1719332553088,0.17,138.98,138.9,7.1992]
[1719332553272,43.5,139.0,138.9,7.1992]
[1719332553470,0.17,138.99,138.9,7.1992]
[1719332553687,7.1958,138.97,138.89,7.1997]
[1719332553974,7.1954,138.98,138.9,7.1994]
[1719332554588,6.0066,138.95,138.84,16.3065]
[1719332554783,13.2038,138.95,138.87,7.2004]
[1719332555378,0.17,138.94,138.87,7.2004]
[1719332555978,7.3674,138.94,138.86,7.2014]
[1719332556483,7.3674,138.94,138.87,7.2008]
[1719332556484,0.17,138.94,138.87,7.2008]
[1719332556803,0.17,138.94,138.85,7.2015]
[1719332557002,0.17,138.94,138.86,7.2014]
[1719332557477,7.3674,138.94,138.86,7.2014]
[1719332558218,7.3674,138.94,138.8,45.93580879]
[1719332558219,22.8061,138.93,138.85,7.202]
[1719332558431,0.17,138.92,138.8,17.73270879]
[1719332558742,0.17,138.92,138.86,7.2013]
[1719332559494,15.6078,138.93,138.82,45.14]
[1719332559687,15.6078,138.93,138.89,7.1998]
[1719332560898,6.0066,138.95,138.89,7.1998]
[1719332561988,6.0066,138.95,138.9,7.1993]
[1719332562176,6.0066,138.95,138.91,7.1984]
[1719332562392,6.0066,138.95,138.9,7.1993]
[1719332562803,6.0066,138.95,138.89,7.1997]
[1719332564132,15.6078,138.97,138.93,7.1974]
[1719332564410,6.1263,138.99,138.91,45.14]
[1719332564615,6.1263,138.99,138.96,7.1959]
[1719332564979,15.1922,139.01,138.97,7.1957]
[1719332565189,15.1922,139.01,138.96,7.196]
[1719332566420,15.1922,139.01,138.97,7.1957]
[1719332566921,15.1922,139.01,138.92,0.34]
[1719332566922,6.1263,139.03,138.98,7.1949]
[1719332567216,6.1263,139.03,138.97,7.1957]
[1719332567509,6.1263,139.03,138.98,1.43542755]
[1719332568787,6.1263,139.03,138.97,7.1957]
[1719332568983,6.1263,139.03,138.98,1.43511771]
[1719332569278,6.1263,139.03,138.98,8.63021771]
[1719332570408,6.1263,139.03,138.97,7.1956]
[1719332570610,6.1263,139.03,138.96,7.1961]
[1719332570791,7.1933,139.02,138.95,8.63191771]
[1719332571001,13.3191,139.03,138.95,7.1968]
[1719332571305,7.1932,139.02,138.94,7.1971]
[1719332571605,0.17,139.01,138.95,1.43799873]
[1719332571814,0.17,139.01,138.95,8.63459873]
[1719332572007,13.3191,139.03,138.95,8.63459873]
[1719332572199,0.17,139.02,138.95,8.63459873]
[1719332572424,7.3637,139.02,138.92,1.43871179]
[1719332572626,7.3637,139.02,138.95,7.1967]
[1719332572920,7.3637,139.02,138.94,7.1972]
[1719332573112,7.3637,139.02,138.92,1.43871179]
[1719332573113,0.17,139.02,138.92,1.43871179]
[1719332573290,0.17,139.02,138.96,7.1962]
[1719332573818,0.17,139.02,138.95,7.1966]
[1719332573990,7.3633,139.02,138.94,7.1972]
[1719332574484,0.17,139.02,138.95,7.1967]
[1719332574886,6.1263,139.03,138.96,1.43932686]
[1719332575091,6.1263,139.03,138.92,1.43932686]
[1719332575307,6.1263,139.03,138.99,7.1946]
[1719332575510,6.1263,139.03,138.95,1.4390161]
[1719332575901,6.1263,139.03,138.98,7.1949]
[1719332576099,6.1263,139.03,138.99,7.1946]
[1719332576810,6.1263,139.03,138.98,7.1951]
[1719332578712,6.1263,139.03,138.97,7.1956]
[1719332578920,6.1263,139.03,138.95,1.4390161]
[1719332578921,6.1263,139.03,138.98,7.1951]
[1719332579102,6.1263,139.03,138.98,8.63380547]
[1719332579309,6.1263,139.03,138.99,7.1947]
[1719332579521,6.1263,139.03,138.98,7.1951]
[1719332579965,6.1263,139.03,138.95,1.43870547]
[1719332580244,6.1263,139.03,138.97,7.1957]
[1719332580413,6.1263,139.03,138.95,1.43870547]
[1719332580414,6.1263,139.03,138.96,7.1961]
[1719332580828,6.1263,139.03,138.94,8.63570547]
[1719332580829,7.1934,139.02,138.94,8.63570547]
[1719332581115,15.6078,139.0,138.94,7.1973]
[1719332581303,15.6078,139.0,138.95,7.1964]
[1719332581507,15.6078,139.0,138.96,7.1961]
[1719332581815,15.6078,139.0,138.98,7.1952]
[1719332582019,21.7341,139.03,138.91,1.43870547]
[1719332582330,21.7341,139.03,138.99,7.1946]
[1719332582627,21.7341,139.03,138.92,1.83516917]
[1719332582833,21.7341,139.03,138.93,1.60849868]
[1719332583164,21.7341,139.03,138.96,7.1959]
[1719332583417,7.1932,139.02,138.94,8.63528812]
[1719332583613,7.1932,139.02,138.95,7.1967]
[1719332583814,29.0967,139.03,138.95,7.1967]
[1719332584040,21.7341,139.03,138.94,1.43818812]
[1719332584319,65.17,139.02,138.92,1.43863775]
[1719332584525,7.1937,139.01,138.93,7.1975]
[1719332584901,0.17,139.0,138.93,7.1975]
[1719332585101,20.0,139.02,138.95,7.1967]
[1719332585308,0.17,139.01,138.9,1.43863775]
[1719332585626,0.17,139.01,138.94,7.1972]
[1719332586012,7.3637,139.01,138.94,7.1972]
[1719332586249,7.3637,139.01,138.93,7.1977]
[1719332586420,21.6672,139.0,138.9,7.1993]
[1719332586625,7.1956,138.98,138.9,7.1993]
[1719332586799,0.17,138.99,138.9,7.1992]
[1719332586999,7.1956,138.98,138.9,7.1992]
[1719332587214,7.1954,138.98,138.9,7.1993]
[1719332587415,0.17,138.97,138.89,7.1997]
[1719332587618,0.17,138.97,138.9,7.1993]
[1719332588200,0.17,138.97,138.87,16.058]
[1719332588201,0.17,138.97,138.91,7.1988]
[1719332588514,7.3653,138.98,138.9,7.1992]
[1719332588915,7.3653,138.98,138.87,16.058]
[1719332588916,7.196,138.97,138.89,7.1998]
[1719332589119,7.195,138.99,138.91,7.1988]
[1719332589426,21.6672,138.93,138.85,259.7]
[1719332589604,21.6672,138.93,138.87,7.2006]
[1719332589808,21.6672,138.93,138.88,7.2003]
[1719332590025,21.6672,138.93,138.87,7.2007]
[1719332590210,21.6672,138.93,138.88,7.2003]
[1719332590527,21.6672,138.93,138.9,7.1993]
[1719332590705,21.6672,138.93,138.91,7.1987]
[1719332590903,21.6672,138.93,138.9,7.1992]
[1719332591207,21.6672,138.93,138.85,45.14]
[1719332591208,21.6672,138.93,138.88,7.2003]
[1719332591402,21.6672,138.93,138.89,7.1998]
[1719332592303,6.2636,138.93,138.9,7.1993]
[1719332592628,22.0917,138.96,138.88,7.1999]
[1719332592824,22.0917,138.96,138.89,7.1999]
[1719332594318,22.0917,138.96,138.84,45.31]
[1719332594319,7.1975,138.94,138.86,7.2011]
[1719332594923,7.3682,138.93,138.85,7.202]
[1719332595130,21.6295,138.92,138.84,7.2021]
[1719332595326,0.17,138.91,138.84,7.2021]
[1719332595526,0.17,138.91,138.85,7.2017]
[1719332596002,0.17,138.91,138.84,7.2024]
[1719332596407,27.369,138.91,138.83,7.2028]
[1719332596600,20.17,138.91,138.79,61.2488]
[1719332596801,20.17,138.91,138.84,7.2025]
[1719332597016,27.66995703,138.91,138.84,7.2025]
[1719332597330,27.66995703,138.91,138.79,61.2488]
[1719332597512,27.66995703,138.91,138.85,7.2016]
[1719332597757,27.66995703,138.91,138.86,7.2014]
[1719332598112,27.66995703,138.91,138.85,7.2018]
[1719332598909,27.66995703,138.91,138.84,7.2023]
[1719332599524,7.66995703,138.91,138.85,7.2019]
[1719332600236,7.66995703,138.91,138.79,61.2488]
[1719332600429,7.66995703,138.91,138.8,20.34]
[1719332600631,7.66995703,138.91,138.85,7.202]
[1719332600831,7.66995703,138.91,138.8,20.34]
[1719332601134,7.66995703,138.91,138.8,43.84]
[1719332601931,7.66995703,138.91,138.85,7.2019]
[1719332602237,7.49995703,138.91,138.83,23.5]
[1719332602435,21.6295,138.92,138.83,23.5]
[1719332602631,21.6295,138.92,138.86,7.2014]
[1719332602955,21.6295,138.92,138.85,7.2018]
[1719332603453,21.6295,138.92,138.86,7.2014]
[1719332604037,21.6295,138.92,138.86,7.2013]
[1719332604831,21.6295,138.92,138.87,7.2007]
[1719332605432,21.6295,138.92,138.86,7.2013]
[1719332606237,21.6295,138.92,138.87,7.2009]
[1719332606634,21.6295,138.92,138.88,7.2004]
[1719332606958,22.258,138.95,138.91,7.1988]
[1719332607137,22.258,138.95,138.89,7.1996]
[1719332607317,22.258,138.95,138.9,7.1992]
[1719332607850,22.258,138.95,138.86,23.5]
[1719332608053,22.258,138.95,138.87,0.17]
[1719332608355,22.258,138.95,138.88,7.2001]
[1719332608726,22.258,138.95,138.81,15.4875]
[1719332608944,0.17,138.94,138.82,65.14]
[1719332609257,0.17,138.94,138.87,7.2009]
[1719332609452,20.0,138.94,138.88,7.2002]
[1719332609755,22.258,138.95,138.89,7.1997]
[1719332610263,22.258,138.95,138.91,7.1988]
[1719332610429,22.258,138.95,138.91,7.1989]
[1719332610621,22.258,138.95,138.9,7.199]
[1719332611017,22.258,138.95,138.92,7.198]
[1719332611636,7.4975968,138.98,138.88,45.14]
[1719332611637,29.1164968,138.98,138.88,45.14]
[1719332611836,21.6189,138.98,138.91,23.5]
[1719332612233,21.6189,138.98,138.95,7.1964]
[1719332613233,21.6189,138.98,138.94,7.1973]
[1719332613644,21.6189,138.98,138.93,7.1978]
[1719332613833,21.6189,138.98,138.92,7.1982]
[1719332614022,21.6189,138.98,138.93,7.1975]
[1719332616159,21.6189,138.98,138.91,23.5]
[1719332616472,21.6189,138.98,138.89,20.17]
[1719332616652,21.6189,138.98,138.9,0.17]
[1719332617157,21.6189,138.98,138.93,7.1978]
[1719332617459,21.6189,138.98,138.94,7.1973]
[1719332617823,21.6189,138.98,138.95,7.1967]
[1719332618123,21.6189,138.98,138.96,7.1962]
[1719332619045,21.6189,138.98,138.94,7.1971]
[1719332620145,21.6189,138.98,138.88,23.5]
[1719332620347,21.6189,138.98,138.84,21.6189]
[1719332620348,20.17,138.97,138.84,15.4427]
[1719332620551,20.17,138.97,138.85,20.0]
[1719332620845,27.3659,138.97,138.86,1.43886021]
[1719332621054,20.17,138.97,138.86,1.43886021]
[1719332621634,20.17,138.97,138.89,7.1995]
[1719332621863,27.3658,138.97,138.89,7.1995]
[1719332622039,20.17,138.97,138.86,1.43886021]
[1719332622525,27.66710682,138.97,138.86,1.43886021]
[1719332622940,7.1965,138.96,138.86,1.43886021]
[1719332623326,27.66710682,138.97,138.86,8.64026021]
[1719332623327,21.7851,138.94,138.86,8.64026021]
[1719332623541,28.9825,138.94,138.87,1.43854937]
[1719332623851,21.7851,138.94,138.87,1.43854937]
[1719332624056,28.9825,138.94,138.85,7.2019]
[1719332624235,0.17,138.93,138.83,2.19706212]
[1719332624445,20.17,138.93,138.83,2.19706212]
[1719332624642,20.17,138.93,138.8,23.5]
[1719332624855,7.1986,138.92,138.82,7.2031]
[1719332625048,7.1986,138.92,138.83,2.19627109]
[1719332625257,7.1995,138.9,138.82,2.19627109]
[1719332625534,20.0,138.89,138.8,7.2041]
[1719332625744,20.0,138.89,138.81,7.2039]
[1719332626067,20.0,138.89,138.77,60.2706]
[1719332626282,21.5626,138.91,138.77,60.2706]
[1719332626283,21.5626,138.91,138.8,45.14]
[1719332626455,21.5626,138.91,138.9,7.1994]
[1719332626672,21.5626,138.91,138.83,23.5]
[1719332626846,21.5626,138.91,138.88,7.2002]
[1719332627039,21.5626,138.91,138.85,7.2019]
[1719332627247,21.5626,138.91,138.81,23.5]
[1719332627446,21.5626,138.91,138.85,7.2015]
[1719332627652,21.5626,138.91,138.82,0.17]
[1719332627866,28.7616,138.91,138.78,1.66684897]
[1719332628048,7.3694,138.9,138.78,25.16684897]
[1719332628244,20.0,138.89,138.78,25.16684897]
[1719332628442,27.2001,138.89,138.8,7.2045]
[1719332628647,27.2001,138.89,138.79,7.2046]
[1719332628648,20.0,138.89,138.79,7.2046]
[1719332628846,22.1883,138.87,138.78,7.2055]
[1719332629206,20.0,138.86,138.78,7.2055]
[1719332629461,20.0,138.86,138.74,16.5613]
[1719332629662,20.0,138.86,138.77,23.5]
[1719332629836,20.0,138.86,138.78,7.2052]
[1719332630365,0.17,138.85,138.75,23.5]
[1719332630537,0.17,138.85,138.77,7.2057]
[1719332630954,0.17,138.85,138.78,7.2056]
[1719332631661,7.3721,138.85,138.73,0.57006377]
[1719332631853,20.0,138.84,138.76,7.2062]
[1719332632250,0.17,138.83,138.77,7.2061]
[1719332632843,7.49167437,138.83,138.77,7.2061]
[1719332633040,7.49167437,138.83,138.78,7.2055]
[1719332633242,0.17,138.84,138.78,7.2055]
[1719332633456,7.66363883,138.84,138.78,7.2055]
[1719332633642,7.66363883,138.84,138.77,7.2061]
[1719332634054,7.66363883,138.84,138.78,7.2053]
[1719332634245,7.66363883,138.84,138.79,7.2049]
[1719332634644,7.49363883,138.84,138.8,7.2043]
[1719332634843,20.0,138.85,138.78,7.2055]
[1719332635042,7.49822079,138.84,138.73,0.57006377]
[1719332635238,20.0,138.83,138.73,0.57006377]
[1719332635548,20.0,138.83,138.77,7.206]
[1719332636063,20.0,138.83,138.75,7.2067]
[1719332636264,20.0,138.83,138.76,7.2065]
[1719332636437,20.0,138.83,138.77,7.2061]
[1719332636863,20.0,138.83,138.78,7.2056]
[1719332637166,7.49822079,138.84,138.8,7.2044]
[1719332637350,22.1883,138.87,138.74,49.15]
[1719332637670,20.0,138.86,138.79,7.2047]
[1719332637887,20.0,138.86,138.75,0.34]
[1719332638451,22.1883,138.87,138.79,27.51]
[1719332638772,6.441,138.9,138.86,7.2014]
[1719332639061,7.49645415,138.92,138.83,49.15]
[1719332639358,6.2107,138.93,138.84,0.34]
[1719332639559,6.2107,138.93,138.84,0.17]
[1719332639971,6.2107,138.93,138.84,0.60965757]
[1719332640153,13.409,138.93,138.84,0.43965757]
[1719332640464,6.2107,138.93,138.84,0.43965757]
[1719332640764,7.1987,138.92,138.84,0.43965757]
[1719332640956,7.199,138.91,138.81,0.44102264]
[1719332641155,0.17,138.92,138.81,0.44102264]
[1719332641156,0.17,138.92,138.84,7.2025]
[1719332641456,0.17,138.92,138.84,7.2023]
[1719332641457,27.3684,138.92,138.84,7.2023]
[1719332641652,20.17,138.92,138.85,7.2019]
[1719332641963,20.0,138.92,138.81,0.44102264]
[1719332642175,6.2107,138.93,138.82,0.34]
[1719332642363,6.2107,138.93,138.88,7.2]
[1719332642967,6.2107,138.93,138.83,49.59102285]
[1719332643172,6.2107,138.93,138.9,7.1992]
[1719332645150,13.2441,138.96,138.87,7.2009]
[1719332645452,27.3669,138.95,138.88,0.44124602]
[1719332645668,27.3668,138.95,138.88,0.44124602]
[1719332645843,20.17,138.95,138.88,0.44124602]
[1719332646265,20.0,138.95,138.9,7.199]
[1719332646444,20.0,138.95,138.84,0.44124602]
[1719332646649,20.0,138.95,138.88,7.2]
[1719332646864,20.0,138.95,138.89,7.1995]
[1719332647071,20.0,138.95,138.84,0.44133654]
[1719332647272,20.0,138.95,138.85,0.34]
[1719332647775,20.0,138.95,138.9,7.199]
[1719332648274,20.0,138.95,138.85,0.82065404]
[1719332648462,20.0,138.95,138.88,7.2]
[1719332648863,20.0,138.95,138.89,7.68041561]
[1719332649164,20.0,138.95,138.88,7.2002]
[1719332649767,20.0,138.95,138.89,0.48048364]
[1719332650079,20.0,138.95,138.9,7.1993]
[1719332650380,20.0,138.95,138.89,7.1995]